bitfinex-derivatives/quotes_ETHF0:USTF0_20260102
["timestamp","ask_amount","ask_price","bid_price","bid_amount"]
[1767367239339,0.00488352,3072.1,3071.0,3.29128478]
[1767367239540,0.00488352,3072.1,3071.0,0.0028335]
[1767367240244,0.16775352,3072.1,3071.0,0.0028335]
[1767367240449,0.16288,3072.0,3071.0,0.0028335]
[1767367241451,0.16289,3071.8,3070.1,0.16298]
[1767367241943,0.16291,3071.5,3070.0,2.83184201]
[1767367242144,0.00488352,3072.1,3070.4,0.16296]
[1767367242337,0.0087036,3072.1,3070.5,3.28845128]
[1767367242849,0.0087036,3072.1,3070.4,0.16552962]
[1767367242850,0.0087036,3072.1,3070.4,0.00256962]
[1767367243042,0.16288,3072.0,3070.4,0.00256962]
[1767367243243,0.16288,3071.9,3070.4,0.00156962]
[1767367243442,3.38173455,3071.9,3070.4,0.00156962]
[1767367244244,0.16288,3071.9,3070.4,0.00156962]
[1767367244444,0.16288,3071.9,3070.4,0.00056962]
[1767367245145,0.16288,3071.9,3070.4,3.2890209]
[1767367245343,0.0087036,3072.1,3070.4,3.2890209]
[1767367245948,0.0087036,3072.1,3070.4,3.2880209]
[1767367246851,0.0087036,3072.1,3070.4,3.29136531]
[1767367247243,0.0087036,3072.1,3070.6,0.16295]
[1767367247755,0.0087036,3072.1,3070.4,0.00334441]
[1767367248457,3.39043815,3072.1,3070.4,0.00334441]
[1767367248856,0.1715836,3072.1,3070.4,0.00234441]
[1767367249245,0.1715836,3072.1,3070.5,3.28845128]
[1767367250249,0.0087036,3072.1,3070.5,3.28745128]
[1767367250454,0.0087036,3072.1,3070.8,0.16294]
[1767367251252,0.0087036,3072.1,3070.6,4.712]
[1767367251446,0.0087036,3072.1,3070.4,2.83318642]
[1767367251652,0.1715736,3072.1,3070.4,0.00134441]
[1767367251852,3.21885455,3072.0,3070.4,0.00134441]
[1767367252059,0.16291,3071.4,3070.4,0.00134441]
[1767367253058,0.16291,3071.4,3070.4,0.00034441]
[1767367254055,0.16293,3071.1,3069.5,2.83184201]
[1767367254249,0.16294,3071.0,3069.2,10.05607505]
[1767367254450,0.00488352,3070.4,3069.2,3.28845128]
[1767367255055,0.00488352,3070.4,3069.2,3.29196631]
[1767367255657,0.00488352,3070.4,3069.2,3.29096631]
[1767367256859,0.00488352,3070.4,3069.2,3.28996631]
[1767367257461,0.00488352,3070.4,3069.2,0.00351503]
[1767367257664,0.16784352,3070.4,3068.6,3.93678176]
[1767367257969,3.27638477,3070.4,3068.3,4.09985176]
[1767367258462,0.00488352,3070.4,3068.5,0.16306]
[1767367258666,0.00488352,3070.4,3068.8,1.25874625]
[1767367258860,0.00488352,3070.4,3068.9,3.40187396]
[1767367259262,0.00488352,3070.4,3069.1,3.40187396]
[1767367259661,0.00488352,3070.4,3069.1,3.40087396]
[1767367259866,0.00488352,3070.4,3069.0,4.717]
[1767367260267,0.00488352,3070.4,3068.8,0.16304]
[1767367260459,0.00488352,3070.4,3068.5,0.00246641]
[1767367260660,3.27638477,3070.4,3068.5,0.00246641]
[1767367260958,0.00488352,3070.4,3068.5,4.71846641]
[1767367261168,0.00488352,3070.4,3068.7,0.16305]
[1767367261865,0.00488352,3070.4,3068.7,3.56492396]
[1767367262166,3.27638477,3070.4,3068.5,0.00146641]
[1767367262367,3.43934477,3070.4,3068.5,0.00046641]
[1767367262665,3.43934477,3070.4,3068.5,3.40234037]
[1767367262867,0.16784352,3070.4,3068.5,3.40234037]
[1767367263471,0.00488352,3070.4,3068.5,3.40234037]
[1767367263765,0.00488352,3070.4,3068.5,3.40134037]
[1767367263976,0.1629,3071.5,3069.3,0.16302]
[1767367264177,0.1629,3071.5,3069.3,4.88202]
[1767367264468,3.27150125,3071.1,3069.0,2.83149753]
[1767367264667,3.43445125,3070.7,3069.0,0.00314037]
[1767367264864,3.27150125,3070.4,3069.0,0.00314037]
[1767367265063,0.00488352,3070.0,3069.0,0.00214037]
[1767367265875,0.00488352,3070.0,3069.0,3.40401433]
[1767367266071,0.00488352,3070.0,3069.0,0.00214037]
[1767367266574,0.00488352,3070.0,3069.0,0.00114037]
[1767367267085,0.00488352,3070.0,3067.9,3.40187396]
[1767367267086,0.16299,3069.9,3067.9,3.40187396]
[1767367267677,0.16299,3069.9,3067.9,3.40087396]
[1767367267875,0.00488352,3070.0,3068.0,0.16309]
[1767367268070,0.00812276,3070.0,3068.0,0.16598236]
[1767367268271,4.53837026,3070.0,3068.0,0.00289236]
[1767367268466,0.16302,3069.3,3068.0,0.00289236]
[1767367268667,4.5302475,3069.4,3067.0,0.16314]
[1767367268876,0.00488352,3068.5,3067.2,0.16313]
[1767367269080,0.00488352,3068.5,3067.2,0.16213]
[1767367269671,0.00488352,3068.5,3067.2,0.16600489]
[1767367269970,0.00488352,3068.5,3067.3,3.40187396]
[1767367270482,0.00488352,3068.5,3067.2,0.00287489]
[1767367270777,6.53538477,3068.5,3066.4,0.16317]
[1767367270978,6.53538477,3068.5,3066.4,3.56504396]
[1767367271173,6.53538477,3068.5,3065.7,3.40187396]
[1767367271174,3.27150125,3068.1,3065.7,3.40187396]
[1767367271379,0.16308,3068.1,3065.7,3.56508396]
[1767367271575,0.00488352,3068.5,3065.9,3.56507396]
[1767367271772,0.001,3067.0,3065.9,3.56507396]
[1767367272074,0.00400099,3067.0,3065.9,3.56507396]
[1767367272279,3.27150125,3068.5,3066.1,3.40187396]
[1767367272476,3.27150125,3068.4,3066.1,3.40187396]
[1767367272674,3.27150125,3067.9,3065.7,0.0024415]
[1767367273278,3.27150125,3067.9,3065.0,0.16325]
[1767367273279,1.25874625,3066.7,3064.1,3.56517396]
[1767367273475,1.25874625,3066.7,3064.7,3.41026403]
[1767367273782,0.00489165,3066.0,3065.4,0.00489165]
[1767367273979,3.27150125,3067.2,3065.4,0.00489165]
[1767367274180,3.43465125,3067.0,3065.4,0.00345635]
[1767367274379,0.16315,3067.0,3065.4,0.00345635]
[1767367274573,0.00409657,3067.2,3065.4,3.40533031]
[1767367275275,0.00489165,3066.6,3066.0,0.00489165]
[1767367275476,0.00489165,3066.6,3065.4,0.00345635]
[1767367275681,0.00489165,3066.6,3064.7,3.41026403]
[1767367275976,0.3007,3066.5,3064.7,3.41026403]
[1767367276387,3.57220125,3066.5,3064.7,0.00839007]
[1767367276682,3.57220125,3066.5,3064.7,0.01229265]
[1767367276881,7.96120125,3066.5,3064.7,0.01229265]
[1767367277373,7.96120125,3066.5,3063.7,3.40187396]
[1767367277374,4.5302475,3065.8,3063.7,3.40187396]
[1767367277578,0.00489165,3065.1,3063.0,3.56522396]
[1767367277774,0.00489165,3065.1,3063.5,3.40187396]
[1767367277974,0.00489165,3065.1,3063.6,3.40187396]
[1767367278374,0.00489165,3065.1,3063.8,3.56518396]
[1767367278579,0.00489165,3065.1,3063.8,3.40187396]
[1767367278782,0.3007,3066.5,3064.2,3.56516396]
[1767367279276,0.3007,3066.5,3064.7,3.56513396]
[1767367279677,3.262,3067.9,3065.5,3.40187396]
[1767367279874,1.76,3067.8,3065.5,3.40187396]
[1767367280075,3.262,3067.9,3065.5,3.56509396]
[1767367280076,0.1631,3067.9,3065.5,3.56509396]
[1767367280478,0.1631,3067.9,3065.7,3.40187396]
[1767367280876,3.27150125,3068.5,3065.7,3.40187396]
[1767367281075,4.335,3068.4,3066.0,3.56506396]
[1767367281282,1.25874625,3068.1,3066.0,3.56746855]
[1767367281680,6.085,3068.1,3066.0,3.56746855]
[1767367281877,7.34374625,3068.1,3066.0,3.56746855]
[1767367282086,0.16308,3068.2,3066.0,3.56746855]
[1767367283277,0.00489165,3066.9,3066.0,3.56746855]
[1767367283480,0.16308,3068.2,3066.0,3.56746855]
[1767367283689,3.42504,3069.0,3066.7,3.40187396]
[1767367283986,3.27150125,3069.6,3067.1,3.40187396]
[1767367284182,3.27150125,3069.6,3067.3,3.40187396]
[1767367284382,0.00489165,3068.8,3068.1,0.00489165]
[1767367284584,3.27150125,3070.2,3068.1,3.40676561]
[1767367284781,0.16299,3070.0,3068.1,3.40676561]
[1767367285092,3.27150125,3070.2,3068.1,3.40676561]
[1767367285093,3.27150125,3070.2,3068.1,0.00489165]
[1767367285395,3.27150125,3070.1,3068.1,0.00489165]
[1767367285593,0.00323402,3069.4,3068.1,0.00489165]
[1767367285889,0.16303,3069.1,3068.1,0.00489165]
[1767367286089,3.42291254,3069.1,3066.9,3.43651055]
[1767367286287,0.16304,3069.0,3066.9,3.27336055]
[1767367286488,3.25988254,3069.1,3066.9,3.27336055]
[1767367286785,0.16625402,3069.4,3066.9,3.27336055]
[1767367286993,0.00323402,3069.4,3067.5,3.06110652]
[1767367287286,0.00323402,3069.4,3068.1,0.00489165]
[1767367288381,0.00323402,3069.4,3068.1,3.06599817]
[1767367288888,0.00323402,3069.4,3068.1,0.00489165]
[1767367289286,2.98783452,3069.4,3068.1,0.00489165]
[1767367289484,0.16304,3069.0,3066.9,3.06110652]
[1767367289886,2.98783452,3069.4,3066.9,3.06110652]
[1767367290191,0.16305,3068.8,3066.9,3.06110652]
[1767367290377,2.9846005,3068.9,3066.3,3.06110652]
[1767367290582,0.00489165,3067.9,3067.3,0.00489165]
[1767367290795,0.00778633,3067.9,3066.3,3.06110652]
[1767367291989,0.16311,3067.6,3065.5,3.06110652]
[1767367292194,0.16312,3067.5,3065.5,3.06110652]
[1767367292392,0.16313,3067.2,3065.5,3.06110652]
[1767367292786,0.16315,3067.0,3064.9,3.06110652]
[1767367293280,0.16315,3067.0,3066.2,0.00489165]
[1767367293488,0.1631,3067.8,3066.2,0.00489165]
[1767367293687,3.262,3067.7,3066.2,0.00489165]
[1767367294393,0.00778633,3067.9,3066.2,3.06599817]
[1767367294586,0.00778633,3067.9,3066.2,0.00489165]
[1767367295190,0.16312,3067.5,3066.2,0.00489165]
[1767367295885,0.00778633,3067.9,3066.2,3.06599817]
[1767367296688,0.00778633,3067.9,3066.2,0.00489165]
[1767367296893,0.16311,3067.6,3066.2,0.00489165]
[1767367297095,0.16312,3067.5,3066.2,0.00489165]
[1767367297592,0.16312,3067.4,3066.2,0.00489165]
[1767367297896,0.00778633,3067.9,3066.2,0.00489165]
[1767367298094,0.84252128,3067.8,3066.2,0.00489165]
[1767367298296,0.84334689,3067.7,3066.2,0.00489165]
[1767367298488,0.16311,3067.7,3066.2,0.00489165]
[1767367298886,0.16311,3067.6,3066.2,0.00489165]
[1767367299090,0.16313,3067.4,3066.2,0.00489165]
[1767367299395,0.84369183,3067.3,3066.2,0.00489165]
[1767367299599,0.16313,3067.4,3066.2,0.00489165]
[1767367299895,0.84468741,3067.3,3066.2,0.00489165]
[1767367300192,0.17088633,3067.9,3066.2,0.00489165]
[1767367300397,0.84486343,3067.8,3066.2,0.00489165]
[1767367300600,0.00778633,3067.9,3066.2,0.00489165]
[1767367300790,0.16312,3067.5,3066.2,0.00489165]
[1767367301295,2.9846005,3067.7,3066.2,0.00489165]
[1767367301491,2.9846005,3067.5,3066.2,0.00489165]
[1767367301696,3.8296234,3067.4,3066.2,0.00489165]
[1767367301890,0.8450229,3067.3,3066.2,0.00489165]
[1767367302201,0.16314,3067.1,3065.1,3.22434652]
[1767367302496,0.16314,3067.0,3065.1,3.22434652]
[1767367302696,0.16314,3067.0,3065.1,3.06110652]
[1767367302895,0.84502081,3066.9,3064.5,3.06110652]
[1767367303086,0.00489165,3066.0,3065.4,0.00489165]
[1767367303286,0.00489165,3066.0,3064.5,3.0636075]
[1767367304097,0.16321,3065.7,3064.5,0.00250098]
[1767367304296,0.00244151,3065.7,3064.5,0.00250098]
[1767367304494,0.16565151,3065.7,3064.5,0.00250098]
[1767367304794,0.00244151,3065.7,3064.5,0.00250098]
[1767367304987,0.16324,3065.3,3063.3,6.32310652]
[1767367305187,0.16324,3065.3,3063.3,3.06110652]
[1767367305599,0.16326,3064.9,3063.3,3.06110652]
[1767367305800,0.00489165,3064.4,3063.3,3.06110652]
[1767367306000,0.00489165,3064.4,3063.3,3.06403196]
[1767367306704,0.00489165,3064.4,3063.3,0.00292544]
[1767367307997,0.00489165,3064.4,3062.8,3.06110652]
[1767367307998,0.1633,3064.1,3062.2,3.06110652]
[1767367308194,0.16331,3063.9,3062.2,3.06110652]
[1767367308394,0.00489165,3064.4,3062.7,3.06110652]
[1767367308594,0.00489165,3064.4,3062.9,3.06110652]
[1767367308803,0.00489165,3064.4,3062.9,3.22446652]
[1767367308999,0.00489165,3064.4,3062.9,3.22685641]
[1767367309206,0.00489165,3064.4,3062.9,0.00238989]
[1767367309397,0.16331,3064.0,3062.9,0.00238989]
[1767367309702,0.92045407,3063.9,3062.9,0.00238989]
[1767367310006,0.92045407,3063.8,3062.9,0.00238989]
[1767367310202,0.3263,3063.9,3062.9,0.00238989]
[1767367310806,0.00489165,3064.4,3062.9,3.06349641]
[1767367311898,0.00489165,3064.4,3063.1,3.06110652]
[1767367313805,0.16324,3065.2,3063.1,3.06110652]
[1767367314109,0.16324,3065.2,3063.1,3.05810652]
[1767367314502,0.16325,3065.0,3063.1,3.05810652]
[1767367314706,0.00489165,3064.4,3063.7,0.00489165]
[1767367315103,0.16325,3065.0,3063.7,0.00489165]
[1767367315302,0.16321,3065.8,3063.7,0.16821165]
[1767367315601,0.16321,3065.8,3063.8,4.31129705]
[1767367315805,0.16321,3065.8,3063.8,0.16331]
[1767367316003,0.16321,3065.8,3063.9,2.91651484]
[1767367316206,0.16318,3066.3,3064.5,3.07979484]
[1767367316709,0.16315,3066.8,3064.7,2.91651484]
[1767367316913,4.05613743,3068.0,3063.3,2.802]
[1767367316914,9.57162513,3067.5,3064.9,2.91651484]
[1767367317102,0.00489165,3066.5,3065.9,0.00489165]
[1767367317296,7.66,3067.5,3065.9,0.00489165]
[1767367317500,0.91500469,3067.4,3065.9,0.00489165]
[1767367317706,0.0041897,3067.4,3065.9,2.92466182]
[1767367317904,0.0041897,3067.4,3065.9,0.00814698]
[1767367318099,0.91501088,3067.3,3065.9,0.00814698]
[1767367318306,0.00489165,3066.9,3064.7,2.91551484]
[1767367318607,0.16319,3066.1,3063.5,3.264]
[1767367318800,0.91501088,3066.0,3063.7,0.16332]
[1767367319007,0.16319,3066.1,3063.6,7.41405057]
[1767367319305,0.16319,3066.1,3064.0,0.1633]
[1767367319504,0.16319,3066.1,3064.5,0.00489165]
[1767367319700,0.16319,3066.1,3064.5,0.00389165]
[1767367320298,7.659,3066.8,3064.6,2.91651484]
[1767367320299,0.16317,3066.6,3064.6,2.91651484]
[1767367320497,0.91762294,3066.5,3064.7,2.91651484]
[1767367320697,0.16322,3065.5,3064.5,0.00389165]
[1767367320906,0.00489165,3065.9,3064.5,0.00389165]
[1767367321105,0.00489165,3065.9,3064.5,0.00289165]
[1767367321408,0.16322,3065.6,3064.5,0.00289165]
[1767367321604,0.16323,3065.4,3063.6,2.91991525]
[1767367321802,0.16324,3065.2,3063.6,2.91991525]
[1767367322105,0.16326,3064.8,3063.6,0.00340041]
[1767367322304,0.91820003,3064.7,3063.6,0.00340041]
[1767367322606,0.91820003,3064.7,3063.6,0.00240041]
[1767367322908,0.91820003,3064.7,3063.8,0.00489165]
[1767367323813,0.91820003,3064.7,3063.8,0.00389165]
[1767367324005,0.16324,3065.1,3063.8,0.00389165]
[1767367324311,0.00280368,3065.2,3063.6,0.00032286]
[1767367324312,5.57699891,3065.0,3063.6,0.00032286]
[1767367324506,1.74850513,3064.8,3062.4,2.91651484]
[1767367324809,0.1633,3064.1,3062.1,0.1634]
[1767367325010,0.91846503,3064.0,3062.1,0.1634]
[1767367325199,0.91846503,3064.0,3062.1,0.1624]
[1767367325511,0.00489165,3063.4,3062.7,0.00489165]
[1767367325708,0.00489165,3063.4,3062.1,0.00294993]
[1767367326007,0.00489165,3063.4,3060.2,2.91651484]
[1767367326008,2.91002875,3062.5,3060.2,2.91651484]
[1767367326214,8.57895174,3062.4,3060.2,2.91651484]
[1767367326400,0.16345,3061.3,3059.6,4.18683441]
[1767367326600,0.0048998,3060.8,3060.1,0.0048998]
[1767367326803,0.91869263,3060.7,3060.1,0.0048998]
[1767367327005,0.91869263,3060.6,3058.2,2.91651484]
[1767367327209,0.16349,3060.5,3058.2,2.91551484]
[1767367327412,0.3267,3060.6,3058.5,0.1636]
[1767367327811,0.3267,3060.6,3058.6,4.22302784]
[1767367328008,0.3267,3060.6,3058.6,4.22623003]
[1767367328310,3.265,3062.5,3059.3,0.0048998]
[1767367328509,3.98673438,3062.4,3059.7,0.16353]
[1767367328815,0.91331563,3062.3,3059.7,0.16353]
[1767367329017,3.82334438,3062.2,3059.7,0.16353]
[1767367329207,0.0048998,3061.3,3060.6,0.0048998]
[1767367329511,0.0048998,3061.3,3059.1,2.91551484]
[1767367330609,0.0048998,3061.3,3059.2,4.22714812]
[1767367330804,0.00386061,3062.2,3059.2,4.22614812]
[1767367331005,0.00386061,3062.2,3060.1,0.16351]
[1767367331315,0.00386061,3062.2,3058.6,0.00320219]
[1767367331512,0.00386061,3062.2,3058.8,2.91651484]
[1767367331714,1.15667228,3063.6,3061.0,3.07997484]
[1767367332015,0.0048998,3062.6,3062.0,0.0048998]
[1767367332216,0.0048998,3062.6,3062.0,0.0038998]
[1767367332416,0.0048998,3062.6,3060.9,2.91651484]
[1767367332615,0.0048998,3062.6,3060.5,2.91651484]
[1767367332918,0.00890482,3062.6,3060.5,2.91893352]
[1767367333417,0.00890482,3062.6,3060.9,2.91651484]
[1767367333611,0.00890482,3062.6,3060.9,2.91551484]
[1767367334016,0.00890482,3062.6,3061.1,0.16345]
[1767367334210,0.00890482,3062.6,3061.0,4.32045674]
[1767367334415,0.92959874,3062.5,3060.5,0.00241868]
[1767367334624,0.00890482,3062.6,3060.5,0.00241868]
[1767367334820,0.92959905,3062.5,3060.5,0.00141868]
[1767367335114,0.00890482,3062.6,3060.5,0.00141868]
[1767367335115,0.92959905,3062.4,3060.5,0.00141868]
[1767367335316,0.16341,3062.1,3060.5,0.00141868]
[1767367335513,1.09300905,3062.0,3060.5,0.00141868]
[1767367335713,0.92959905,3061.9,3059.8,2.91651484]
[1767367335909,0.92959905,3061.8,3059.8,2.91651484]
[1767367336112,0.92959905,3061.7,3059.8,2.91651484]
[1767367336418,0.0048998,3061.1,3059.8,2.91551484]
[1767367336922,0.0048998,3061.1,3059.8,3.08163612]
[1767367337615,0.00400502,3062.6,3059.9,10.28201061]
[1767367337809,0.00400502,3062.6,3060.0,7.981]
[1767367338211,0.00400502,3062.6,3060.9,2.91651484]
[1767367338409,0.00400502,3062.6,3061.4,0.0048998]
[1767367338410,0.0048998,3062.1,3061.4,0.0048998]
[1767367339016,0.00400502,3062.6,3061.4,2.92041464]
[1767367340021,0.0048998,3062.3,3061.4,2.92041464]
[1767367340219,0.0048998,3062.3,3061.4,0.0038998]
[1767367340412,0.0048998,3062.3,3061.4,0.0028998]
[1767367340613,0.0048998,3062.3,3061.4,2.91941464]
[1767367340922,0.00400502,3062.6,3061.4,2.91941464]
[1767367341114,0.16333,3063.6,3061.8,2.91651484]
[1767367341316,3.83728355,3063.5,3061.4,0.0028998]
[1767367341612,3.83728355,3063.5,3061.4,0.0018998]
[1767367341613,0.16337,3062.9,3061.4,0.0018998]
[1767367341815,3.83728355,3062.8,3061.4,0.0018998]
[1767367342019,0.16338,3062.6,3061.4,0.0018998]
[1767367342219,0.9272548,3062.5,3061.4,0.0018998]
[1767367342411,0.00351281,3062.8,3061.4,0.0018998]
[1767367342616,0.0048998,3062.4,3061.4,0.0018998]
[1767367343420,0.00451281,3062.8,3061.4,3.08185464]
[1767367343925,0.16333,3063.5,3061.7,2.91651484]
[1767367344222,0.92662696,3063.4,3061.7,2.91651484]
[1767367344423,0.0048998,3062.9,3061.4,0.0018998]
[1767367344727,0.0048998,3062.9,3061.4,2.91841464]
[1767367344922,0.00771121,3062.9,3061.4,2.91841464]
[1767367346120,0.16329,3064.3,3062.2,2.95261808]
[1767367346314,0.92759133,3064.2,3062.4,2.95260808]
[1767367346620,2.94955265,3064.9,3062.8,2.78921808]
[1767367346815,0.92755684,3064.8,3062.8,2.78921808]
[1767367347127,0.0048998,3064.1,3063.5,0.0048998]
[1767367347919,0.92917898,3064.0,3062.8,0.00333475]
[1767367348219,0.9295087,3063.9,3062.8,0.00333475]
[1767367348419,0.16333,3063.6,3062.8,0.00333475]
[1767367348619,0.0048998,3064.1,3062.8,0.00333475]
[1767367348819,0.93080266,3064.0,3062.8,0.00333475]
[1767367349020,0.1681998,3064.1,3063.1,0.0048998]
[1767367349218,0.93185774,3064.0,3063.1,0.0048998]
[1767367349421,0.1681998,3064.1,3063.1,0.0048998]
[1767367349717,0.16331,3063.9,3063.1,0.0048998]
[1767367349924,0.93184894,3063.8,3063.1,0.0048998]
[1767367350621,0.0048998,3064.1,3062.8,0.00333475]
[1767367350814,0.16332,3063.7,3062.8,0.00333475]
[1767367351019,0.9330771,3063.6,3062.8,0.00333475]
[1767367351222,0.16332,3063.7,3062.8,0.00333475]
[1767367351521,0.0048998,3064.1,3062.8,0.00333475]
[1767367351721,0.93319388,3064.0,3062.8,0.00333475]
[1767367351920,0.93319388,3063.9,3062.8,0.00333475]
[1767367352222,1.09650388,3063.8,3062.8,0.00333475]
[1767367352420,0.1681998,3064.1,3062.8,0.00333475]
[1767367352727,0.9335577,3064.0,3062.8,0.00333475]
[1767367353028,0.9335577,3063.9,3063.1,0.0048998]
[1767367353325,0.93382795,3063.8,3063.1,0.0048998]
[1767367353527,0.1633,3064.0,3063.1,0.0048998]
[1767367353720,0.93380991,3063.9,3063.1,0.0048998]
[1767367353927,0.0048998,3064.1,3063.1,0.0048998]
[1767367354128,0.93377963,3064.0,3063.1,0.0048998]
[1767367354327,0.0048998,3064.1,3063.1,0.0048998]
[1767367354625,0.0036423,3064.8,3063.1,2.88991314]
[1767367354925,0.93391956,3064.7,3063.1,2.88991314]
[1767367355122,0.1669023,3064.8,3063.1,3.05326314]
[1767367355323,0.16327,3064.7,3063.1,3.05326314]
[1767367355629,0.0048998,3064.2,3063.1,3.05326314]
[1767367355928,0.0036423,3064.8,3063.3,2.88501334]
[1767367356120,0.0036423,3064.8,3063.5,3.04834334]
[1767367356326,0.0036423,3064.8,3063.5,2.88501334]
[1767367356927,0.0048998,3064.5,3063.5,2.88501334]
[1767367357131,0.0048998,3064.5,3063.2,3.04835334]
[1767367357828,0.0048998,3064.5,3063.2,2.88501334]
[1767367358032,0.1681798,3064.5,3063.1,0.0048998]
[1767367358234,0.16329,3064.3,3063.1,0.0048998]
[1767367359922,1.09949875,3064.2,3063.1,0.0048998]
[1767367360122,1.09967726,3064.1,3063.1,0.0048998]
[1767367360323,0.1633,3064.1,3063.1,0.0048998]
[1767367360523,0.0048998,3064.5,3063.1,2.88991314]
[1767367360729,0.0036423,3064.8,3063.7,2.88501334]
[1767367361121,2.80578411,3065.9,3063.7,3.04833334]
[1767367361427,0.16323,3065.3,3063.7,2.88501334]
[1767367361638,0.16321,3065.8,3063.7,2.88501334]
[1767367361825,0.0048998,3065.1,3063.7,2.88501334]
[1767367362329,0.0048998,3065.1,3063.1,8.03289632]
[1767367362330,0.00808504,3065.1,3063.9,2.88501334]
[1767367362927,0.00808504,3065.1,3064.0,3.04831334]
[1767367363827,0.00808504,3065.1,3063.4,3.04834334]
[1767367364535,0.16325,3065.0,3063.4,2.88501334]
[1767367365031,0.00808504,3065.1,3063.4,2.88501334]
[1767367365243,0.16327,3064.7,3063.1,0.0048998]
[1767367365429,0.16327,3064.6,3063.1,0.0048998]
[1767367366130,0.16327,3064.6,3063.1,2.88991314]
[1767367366536,4.07178063,3064.9,3063.1,0.0048998]
[1767367366735,3.7416677,3064.8,3063.1,0.0048998]
[1767367366933,0.93588359,3064.7,3063.1,0.0048998]
[1767367367530,0.16329,3064.2,3063.1,0.0048998]
[1767367368235,0.16329,3064.2,3062.8,0.00333475]
[1767367368236,1.26599652,3063.8,3062.8,0.00333475]
[1767367368437,0.16332,3063.8,3062.8,0.00333475]
[1767367369135,0.16332,3063.8,3061.7,2.88501334]
[1767367369341,0.0048998,3063.1,3062.4,0.0048998]
[1767367370236,0.0048998,3063.1,3062.4,0.00727327]
[1767367371441,0.16331,3063.9,3062.4,0.00727327]
[1767367371750,0.16332,3063.7,3062.4,0.00727327]
[1767367371935,0.93795706,3063.6,3062.4,0.00727327]
[1767367372139,0.16332,3063.7,3062.4,0.00727327]
[1767367372340,0.0048998,3063.4,3062.4,0.00727327]
[1767367373437,0.1682398,3063.4,3062.4,0.00727327]
[1767367373746,0.9389977,3063.3,3062.4,0.00727327]
[1767367373941,0.1682398,3063.4,3062.4,0.00727327]
[1767367374639,0.0048998,3063.4,3062.4,0.00727327]
[1767367375138,0.0048998,3063.4,3062.4,2.89228661]
[1767367379344,1.89823808,3064.7,3062.4,2.89228661]
[1767367379540,0.93896372,3064.6,3062.7,2.7686028]
[1767367379736,0.16329,3064.2,3062.7,2.7686028]
[1767367380440,0.0048998,3063.8,3062.4,0.00727327]
[1767367380742,0.00318524,3065.1,3063.4,2.7686028]
[1767367381043,0.00318524,3065.1,3063.7,2.7686028]
[1767367381436,0.00318524,3065.1,3063.9,2.7686028]
[1767367381742,0.16318,3066.4,3064.2,2.7735026]
[1767367381940,0.001,3067.0,3064.5,2.9318728]
[1767367382145,0.93796637,3066.9,3064.5,2.9318728]
[1767367382348,0.93796637,3066.8,3064.7,2.7686028]
[1767367382545,0.93796637,3066.7,3064.8,2.7686028]
[1767367382742,0.00274246,3066.7,3065.0,2.7686028]
[1767367382945,0.00274246,3066.7,3065.3,2.7686028]
[1767367383149,0.001,3067.0,3065.5,2.7686028]
[1767367383351,0.001,3067.0,3065.9,0.0048998]
[1767367384044,0.1664905,3067.0,3065.9,0.0048998]
[1767367384242,0.1664905,3067.0,3064.9,2.7686028]
[1767367384652,0.1664905,3067.0,3065.1,2.7686028]
[1767367385069,0.0033405,3067.0,3065.3,4.03459932]
[1767367385344,0.0033405,3067.0,3065.2,12.40788109]
[1767367385345,0.0033405,3067.0,3065.7,0.00489165]
[1767367386142,0.0033405,3067.0,3065.1,2.7686028]
[1767367386143,0.0033405,3067.0,3065.0,4.707]
[1767367386445,0.16307,3068.5,3066.2,0.16318]
[1767367386647,0.16302,3069.3,3066.4,1.26599652]
[1767367386945,1.26599652,3070.0,3067.6,0.16311]
[1767367387144,0.16298,3070.1,3068.5,0.00489165]
[1767367387340,0.16298,3070.1,3068.5,0.00872587]
[1767367387341,0.00273992,3070.1,3068.5,0.00872587]
[1767367387540,0.00273992,3070.1,3068.6,4.26619614]
[1767367387747,0.00273992,3070.1,3068.6,4.706]
[1767367387955,0.00273992,3070.1,3068.5,0.00872587]
[1767367389355,0.92547569,3070.0,3068.5,0.00872587]
[1767367389554,0.92547569,3070.0,3067.7,3.264]
[1767367389555,2.81943297,3069.8,3067.4,2.7686028]
[1767367389755,0.16302,3069.4,3067.4,2.7686028]
[1767367389942,0.16303,3069.3,3067.4,2.7686028]
[1767367390146,0.16303,3069.3,3067.4,2.7676028]
[1767367390754,0.00489165,3068.7,3068.0,0.00489165]
[1767367391054,0.00489165,3068.7,3067.4,2.76989583]
[1767367391055,0.00489165,3068.7,3067.4,0.00229303]
[1767367391464,2.81943297,3068.5,3065.9,3.262]
[1767367391647,2.81943297,3068.3,3065.9,3.262]
[1767367391856,0.00489165,3067.4,3066.8,0.00489165]
[1767367392055,0.00489165,3067.4,3065.6,2.7686028]
[1767367392561,0.00804884,3067.4,3065.8,2.7686028]
[1767367392858,0.00804884,3067.4,3065.8,2.7676028]
[1767367393159,0.00804884,3067.4,3066.3,0.00489165]
[1767367394053,0.17117884,3067.4,3066.3,0.00489165]
[1767367394355,0.17117884,3067.4,3066.3,0.00389165]
[1767367395350,0.00804884,3067.4,3066.3,0.00389165]
[1767367395551,0.00804884,3067.4,3066.3,0.00289165]
[1767367396261,0.16314,3067.1,3065.6,0.00333234]
[1767367396560,0.16315,3067.0,3065.6,0.00333234]
[1767367396756,0.00804884,3067.4,3065.6,0.00333234]
[1767367396956,0.00804884,3067.4,3065.6,0.00233234]
[1767367397155,0.00804884,3067.4,3066.2,0.00489165]
[1767367397357,0.17116884,3067.4,3066.2,0.00489165]
[1767367397859,0.00804884,3067.4,3066.2,0.00489165]
[1767367398360,0.00804884,3067.4,3066.2,2.77349445]
[1767367398565,0.00804884,3067.4,3066.2,0.00389165]
[1767367398962,0.17116884,3067.4,3066.2,0.00389165]
[1767367399857,0.17116884,3067.4,3066.2,0.00289165]
[1767367401165,0.17116884,3067.4,3066.2,0.00189165]
[1767367401361,9.74244356,3067.3,3065.6,0.00233234]
[1767367401659,9.74244356,3067.3,3064.4,3.263]
[1767367401660,0.16318,3066.4,3064.4,2.7686028]
[1767367402254,0.1632,3066.0,3063.8,2.7686028]
[1767367402460,0.00489165,3065.2,3064.6,0.00389165]
[1767367402658,0.00907236,3065.2,3064.6,0.0075297]
[1767367403866,0.00907236,3065.2,3064.6,0.0065297]
[1767367405057,0.00907236,3065.2,3064.6,0.00028063]
[1767367405261,0.00907236,3065.2,3063.7,2.76788343]
[1767367405665,0.00907236,3065.2,3063.3,0.38856108]
[1767367405856,0.92652878,3065.1,3062.4,0.16338]
[1767367406057,0.16332,3063.7,3061.2,0.16345]
[1767367406260,0.16332,3063.6,3061.3,0.16345]
[1767367406461,0.00489165,3064.1,3061.9,0.16341]
[1767367406661,0.00489165,3064.1,3061.9,0.16241]
[1767367406861,0.00489165,3064.1,3061.9,3.263]